bitfinex/quotes_ETHUSD_20250520
["timestamp","ask_amount","ask_price","bid_price","bid_amount"]
[1747777646764,4.36066692,2505.8,2505.7,17.231]
[1747777647008,4.36066692,2505.8,2505.7,38.188]
[1747777648209,4.36066692,2505.8,2505.7,17.231]
[1747777648408,4.36066692,2505.8,2505.7,38.188]
[1747777649571,4.36066692,2505.8,2505.7,17.231]
[1747777649812,4.81456692,2505.8,2505.7,38.188]
[1747777653503,4.36066692,2505.8,2505.7,38.188]
[1747777654178,3.99074147,2505.8,2505.7,38.188]
[1747777654882,3.99074147,2505.8,2505.7,38.57044152]
[1747777656617,3.99074147,2505.8,2505.7,17.61344152]
[1747777656920,3.99074147,2505.8,2505.7,38.55044152]
[1747777657420,4.3606984,2505.8,2505.7,38.55044152]
[1747777661105,4.3606984,2505.8,2505.7,39.0009]
[1747777663328,4.3606984,2505.8,2505.7,18.0639]
[1747777663524,4.3606984,2505.8,2505.7,39.0009]
[1747777663720,4.3606984,2505.8,2505.7,18.0639]
[1747777663925,4.3606984,2505.8,2505.7,39.0009]
[1747777664493,4.3606984,2505.8,2505.7,39.38333103]
[1747777664824,4.3606984,2505.8,2505.7,17.61343103]
[1747777665128,4.3606984,2505.8,2505.7,38.55043103]
[1747777665729,4.3606984,2505.8,2505.7,17.61343103]
[1747777665907,4.3606984,2505.8,2505.7,38.55043103]
[1747777666431,4.3606984,2505.8,2505.7,17.61343103]
[1747777666730,4.3606984,2505.8,2505.7,38.55043103]
[1747777667152,4.3606984,2505.8,2505.7,38.168]
[1747777671850,4.3606984,2505.8,2505.7,38.55048336]
[1747777673062,4.3606984,2505.8,2505.7,38.168]
[1747777674065,4.3606984,2505.8,2505.7,17.231]
[1747777674365,4.3606984,2505.8,2505.7,38.168]
[1747777679455,4.3606984,2505.8,2505.7,17.231]
[1747777679657,4.3606984,2505.8,2505.7,38.55051294]
[1747777679871,4.3606984,2505.8,2505.7,29.57851294]
[1747777680071,4.3606984,2505.8,2505.7,38.55051294]
[1747777681391,4.3606984,2505.8,2505.7,29.196]
[1747777681696,4.3606984,2505.8,2505.7,38.168]
[1747777684328,4.3606984,2505.8,2505.7,38.55056366]
[1747777687331,4.3606984,2505.8,2505.7,39.36276366]
[1747777687795,4.3606984,2505.8,2505.7,41.30721056]
[1747777688198,3.99060936,2505.9,2505.7,41.30721056]
[1747777688531,3.99058222,2505.9,2505.8,0.8122]
[1747777688905,3.99058222,2505.9,2505.8,8.8122]
[1747777689202,3.99058222,2505.9,2505.8,12.71456288]
[1747777689400,0.36987777,2506.2,2505.8,13.09712654]
[1747777689602,0.36987777,2506.2,2506.1,0.8122]
[1747777689789,0.36987777,2506.2,2506.1,8.8122]
[1747777689992,3.99010454,2506.2,2506.1,29.7252]
[1747777690188,3.99010454,2506.2,2506.1,32.69772]
[1747777690496,3.99010454,2506.2,2506.1,35.564744]
[1747777690809,3.99010454,2506.2,2506.1,32.69772]
[1747777691136,3.99010454,2506.2,2506.1,33.08028366]
[1747777694321,3.98914951,2506.8,2506.3,0.7693]
[1747777694614,3.98972006,2506.5,2506.4,0.87693]
[1747777695439,3.98972006,2506.5,2506.4,1.70203]
[1747777696248,3.98972006,2506.5,2506.4,22.61103]
[1747777696419,3.98972006,2506.5,2506.4,1.70203]
[1747777696754,3.98972006,2506.5,2506.4,21.7341]
[1747777698059,3.98972006,2506.5,2506.4,26.573753]
[1747777698404,3.98972006,2506.5,2506.4,29.7341]
[1747777699420,3.98953257,2506.6,2506.4,30.11484259]
[1747777699610,3.98953257,2506.6,2506.5,3.90236288]
[1747777700218,3.98953257,2506.6,2506.5,24.80936288]
[1747777702013,3.98953257,2506.6,2506.5,32.80936288]
[1747777703138,3.98953257,2506.6,2506.5,11.90236288]
[1747777703341,3.98953257,2506.6,2506.5,32.80836288]
[1747777704343,3.98935264,2506.7,2506.6,8.0]
[1747777704344,3.98940647,2506.7,2506.6,8.0]
[1747777704643,3.98940647,2506.7,2506.6,12.09983629]
[1747777705242,3.98921831,2506.8,2506.6,9.48948929]
[1747777705415,3.98921831,2506.8,2506.7,23.33344322]
[1747777705620,4.08906899,2506.9,2506.7,24.15244322]
[1747777705822,4.08906899,2506.9,2506.8,4.839653]
[1747777706217,4.44368614,2506.4,2506.3,8.969]
[1747777706420,4.44368614,2506.4,2506.3,20.905]
[1747777709637,12.44368614,2506.4,2506.3,20.905]
[1747777710050,12.81142088,2506.4,2506.3,20.905]
[1747777710558,3.99010454,2506.2,2506.1,17.219]
[1747777710746,3.99010454,2506.2,2506.1,38.125]
[1747777711566,3.99010454,2506.2,2506.1,17.219]
[1747777711718,3.99010454,2506.2,2506.1,38.125]
[1747777713065,4.44400454,2506.2,2506.1,29.156]
[1747777713265,4.44400454,2506.2,2506.1,38.125]
[1747777714135,3.99010454,2506.2,2506.1,38.125]
[1747777716545,0.1,2506.9,2506.2,0.8133]
[1747777716735,3.98974465,2506.5,2506.3,0.8133]
[1747777716937,3.98953541,2506.6,2506.4,0.88133]
[1747777717476,3.98962696,2506.5,2506.4,0.88133]
[1747777718933,3.98962696,2506.5,2506.4,1.26233618]
[1747777721766,3.98962696,2506.5,2506.4,4.44219718]
[1747777721998,3.98962696,2506.5,2506.4,5.20709718]
[1747777722168,3.98950121,2506.6,2506.4,5.20709718]
[1747777722361,3.98940303,2506.7,2506.5,2.01102889]
[1747777722556,3.98940303,2506.7,2506.6,20.881]
[1747777722977,3.98940303,2506.7,2506.6,26.485553]
[1747777723585,3.98940303,2506.7,2506.6,21.6459]
[1747777729497,3.98940303,2506.7,2506.6,29.6459]
[1747777729695,3.98940303,2506.7,2506.6,32.89972589]
[1747777730094,4.089066,2506.9,2506.7,8.0]
[1747777730258,3.98914951,2506.8,2506.7,8.0]
[1747777731287,3.98914951,2506.8,2506.7,8.38065547]
[1747777731603,3.98914951,2506.8,2506.7,12.21724247]
[1747777731768,3.98914951,2506.8,2506.7,15.39357135]
[1747777731968,3.98914951,2506.8,2506.7,12.28301835]
[1747777732388,3.98914951,2506.8,2506.7,13.05441835]
[1747777735103,0.1,2506.9,2506.7,32.26705861]
[1747777735273,0.1,2506.9,2506.8,8.0]
[1747777735475,0.1,2506.9,2506.8,11.90236288]
[1747777735990,0.1,2506.9,2506.8,13.90938788]
[1747777736195,0.1,2506.9,2506.8,11.90236288]
[1747777736391,4.08899038,2506.9,2506.8,11.90236288]
[1747777737507,4.08899038,2506.9,2506.8,33.15901835]
[1747777738304,4.08899038,2506.9,2506.8,12.28301835]
[1747777738504,4.08899038,2506.9,2506.8,33.15901835]
[1747777739305,4.54289038,2506.9,2506.8,21.25665547]
[1747777739712,4.08899038,2506.9,2506.8,21.25665547]
[1747777740004,4.08899038,2506.9,2506.8,28.876]
[1747777742113,0.1,2506.9,2506.8,29.6319]
[1747777742312,0.1,2506.9,2506.8,37.24652688]
[1747777742484,0.1,2506.9,2506.8,37.62708431]
[1747777746291,0.1,2506.9,2506.8,39.62165906]
[1747777746894,0.1,2506.9,2506.8,40.09898562]
[1747777749533,0.1,2506.9,2506.8,40.64898562]
[1747777749717,0.1,2506.9,2506.8,55.30557703]
[1747777751637,0.1,2506.9,2506.8,54.67165906]
[1747777752937,0.1,2506.9,2506.8,54.64565906]
[1747777753103,0.1,2506.9,2506.8,54.09565906]
[1747777753519,0.1,2506.9,2506.8,54.64565906]
[1747777753737,0.1,2506.9,2506.8,55.28108369]
[1747777755002,0.1,2506.9,2506.8,53.28650894]
[1747777755508,0.1,2506.9,2506.8,53.28450894]
[1747777756019,0.1,2506.9,2506.8,38.78450894]
[1747777757532,0.1,2506.9,2506.8,17.93650894]
[1747777757912,0.1,2506.9,2506.8,38.78450894]
[1747777760023,0.1,2506.9,2506.8,53.28450894]
[1747777760652,0.1,2506.9,2506.8,52.64908431]
[1747777761844,0.1,2506.9,2506.8,16.54518431]
[1747777762153,0.1,2506.9,2506.8,37.39318431]
[1747777762949,0.1,2506.9,2506.8,38.16188431]
[1747777764848,3.98865831,2507.2,2506.9,8.0]
[1747777765033,3.98865831,2507.2,2507.1,8.0]
[1747777765650,3.98865831,2507.2,2507.1,28.847]
[1747777766209,3.98865831,2507.2,2507.1,8.0]
[1747777766415,3.98865831,2507.2,2507.1,28.847]
[1747777766617,3.98865831,2507.2,2507.1,29.70448204]
[1747777766852,3.98865831,2507.2,2507.1,33.60684492]
[1747777769650,3.98865831,2507.2,2507.1,36.58251692]
[1747777769857,3.98865831,2507.2,2507.1,33.60684492]
[1747777770354,3.98865831,2507.2,2507.1,37.61875192]
[1747777771333,3.98865831,2507.2,2507.1,34.37614492]
[1747777771538,3.98865831,2507.2,2507.1,38.24508692]
[1747777773155,3.98865831,2507.2,2507.1,37.76816231]
[1747777775058,3.98865831,2507.2,2507.1,37.50027131]
[1747777775452,0.4539,2507.8,2507.2,8.0]
[1747777775757,3.98803589,2507.5,2507.4,8.0]
[1747777776930,4.08746078,2507.9,2507.5,1.3153]
[1747777777129,0.1,2507.9,2507.7,0.55]
[1747777777335,0.1,2507.9,2507.8,38.390811]
[1747777777532,0.1,2507.9,2507.8,41.64885121]
[1747777777853,4.08739981,2507.9,2507.8,32.68385121]
[1747777778061,4.08739981,2507.9,2507.8,53.50585121]
[1747777778353,4.54129981,2507.9,2507.8,49.84204021]
[1747777778562,4.54129981,2507.9,2507.8,46.033]
[1747777778860,4.54129981,2507.9,2507.8,46.41355743]
[1747777781645,4.54129981,2507.9,2507.8,25.59355743]
[1747777782859,4.54129981,2507.9,2507.8,46.41355743]
[1747777784075,4.08739981,2507.9,2507.8,46.41355743]
[1747777784234,0.1,2507.9,2507.8,29.49592031]
[1747777784438,0.1,2507.9,2507.8,46.41355743]
[1747777784439,4.54129981,2507.9,2507.8,46.41355743]
[1747777785157,4.54129981,2507.9,2507.8,25.59355743]
[1747777785367,4.54129981,2507.9,2507.8,46.41355743]
[1747777786760,4.54129981,2507.9,2507.8,46.033]
[1747777787158,4.08739981,2507.9,2507.8,46.033]
[1747777789075,4.08739981,2507.9,2507.8,46.41436058]
[1747777789378,0.1,2507.9,2507.8,41.56962258]
[1747777790379,0.1,2507.9,2507.8,42.89632258]
[1747777790546,0.1,2507.9,2507.8,46.79868546]
[1747777790747,0.1,2507.9,2507.8,46.24868546]
[1747777790940,4.08739981,2507.9,2507.8,25.42868546]
[1747777791163,4.08739981,2507.9,2507.8,45.10310746]
[1747777791372,0.1,2507.9,2507.8,24.28510746]
[1747777791572,4.08739981,2507.9,2507.8,53.41343846]
[1747777791773,0.1,2507.9,2507.8,53.41343846]
[1747777791977,0.1,2507.9,2507.8,53.96343846]
[1747777792352,3.98709627,2508.1,2507.9,8.0]
[1747777792678,3.98709627,2508.1,2508.0,11.90236288]
[1747777793179,3.98709627,2508.1,2508.0,32.72036288]
[1747777793494,3.98709627,2508.1,2508.0,33.54666288]
[1747777793778,3.98709627,2508.1,2508.0,11.90236288]
[1747777793985,3.98709627,2508.1,2508.0,32.72036288]
[1747777794570,3.98709627,2508.1,2508.0,33.10172346]
[1747777797846,3.98709627,2508.1,2508.0,37.94137646]
[1747777798054,3.9868581,2508.3,2508.1,8.0]
[1747777798381,3.9868581,2508.3,2508.2,3.79413765]
[1747777799152,3.9868581,2508.3,2508.2,4.17549823]
[1747777800184,3.9868581,2508.3,2508.2,12.17549823]
[1747777800546,3.9868581,2508.3,2508.2,16.19024823]
[1747777803388,3.9868581,2508.3,2508.2,32.99249823]
[1747777804459,3.9868581,2508.3,2508.2,12.17549823]
[1747777804662,4.4407581,2508.3,2508.2,12.23536058]
[1747777804870,4.4407581,2508.3,2508.2,21.19836058]
[1747777805982,3.98724082,2508.0,2507.9,8.0]
[1747777806149,3.98724082,2508.0,2507.9,28.794]
[1747777807183,3.98724082,2508.0,2507.9,29.17561693]
[1747777807682,3.98724082,2508.0,2507.9,33.07797981]
[1747777810398,3.98724082,2508.0,2507.9,25.07897981]
[1747777810553,3.98724082,2508.0,2507.9,20.21461693]
[1747777810865,4.44114082,2508.0,2507.9,29.17661693]
[1747777811691,3.98724082,2508.0,2507.9,29.17661693]
[1747777813793,3.98724082,2508.0,2507.9,32.46482793]
[1747777813993,3.98724082,2508.0,2507.9,31.25257593]
[1747777814289,3.98711684,2508.1,2507.9,35.15493881]
[1747777814492,8.4539,2508.6,2507.9,25.07897981]
[1747777814699,3.98694158,2508.2,2507.9,25.07897981]
[1747777815491,3.98708822,2508.1,2507.9,25.07897981]
[1747777815701,3.98708822,2508.1,2508.0,4.28397981]
[1747777816077,3.98682291,2508.3,2508.0,4.28397981]
[1747777816284,3.98692289,2508.2,2508.0,4.28397981]
[1747777817001,3.98692289,2508.2,2508.1,0.38161693]
[1747777817700,4.44082289,2508.2,2508.1,12.21461693]
[1747777817875,4.44082289,2508.2,2508.1,21.17761693]
[1747777818509,4.44082289,2508.2,2508.1,12.21461693]
[1747777818693,4.44082289,2508.2,2508.1,21.17761693]
[1747777820208,4.44082289,2508.2,2508.1,0.38161693]
[1747777820500,4.44082289,2508.2,2507.8,17.213]
[1747777820676,3.98739981,2507.9,2507.8,17.213]
[1747777821087,4.44129981,2507.9,2507.8,38.009]
[1747777821483,4.44129981,2507.9,2507.8,29.046]
[1747777821689,4.44129981,2507.9,2507.8,38.3908802]
[1747777823127,4.44129981,2507.9,2507.8,29.047]
[1747777823805,4.4812737,2507.9,2507.8,29.047]
[1747777824015,4.8098086,2507.9,2507.8,29.047]
[1747777827211,4.8098086,2507.9,2507.8,17.213]
[1747777827519,4.8098086,2507.9,2507.8,29.048]
[1747777829302,4.44129981,2507.9,2507.8,29.048]
[1747777831205,14.52129981,2507.9,2507.8,29.048]
[1747777831407,14.52129981,2507.9,2507.8,17.213]
[1747777831606,14.8898086,2507.9,2507.8,38.012]
[1747777832227,14.8898086,2507.9,2507.8,29.049]
[1747777840751,14.8898086,2507.9,2507.8,11.836]
[1747777843819,14.52129981,2507.9,2507.8,11.836]
[1747777844230,14.06739981,2507.9,2507.8,20.801]
[1747777847058,14.43493392,2507.9,2507.8,20.801]
[1747777848352,14.43493392,2507.9,2507.8,21.5612]
[1747777848557,14.43493392,2507.9,2507.8,29.5612]
[1747777849057,14.06739981,2507.9,2507.8,29.5612]
[1747777849256,3.98739981,2507.9,2507.8,29.5612]
[1747777850261,3.98739981,2507.9,2507.8,28.783]
[1747777850859,3.98739981,2507.9,2507.8,33.45286288]
[1747777852457,3.98739981,2507.9,2507.8,33.83447759]
[1747777853461,3.98739981,2507.9,2507.8,38.67413059]
[1747777853647,3.98739981,2507.9,2507.8,33.83447759]
[1747777853848,3.98739981,2507.9,2507.8,38.27858159]
[1747777854041,3.98739981,2507.9,2507.8,37.33391759]
[1747777856345,14.06675604,2508.4,2507.9,8.8017]
[1747777856551,3.98708185,2508.1,2508.0,4.70406288]
[1747777856856,3.98708185,2508.1,2508.0,17.92533059]
[1747777858443,3.98708185,2508.1,2508.0,18.47533059]
[1747777858630,3.98708185,2508.1,2508.0,17.92533059]
[1747777858834,3.98708185,2508.1,2508.0,12.28397759]
[1747777859033,3.98708185,2508.1,2508.0,29.16161471]
[1747777860535,3.98708185,2508.1,2508.0,29.16061471]
[1747777860932,3.98708185,2508.1,2508.0,28.779]
[1747777861865,3.98708185,2508.1,2508.0,8.0]
[1747777862031,3.98708185,2508.1,2508.0,28.779]
[1747777864170,3.98708185,2508.1,2508.0,20.779]
[1747777864371,3.98708185,2508.1,2507.8,4.70406288]
[1747777864372,3.98739981,2507.9,2507.8,4.70406288]
[1747777864668,3.98739981,2507.9,2507.8,20.779]
[1747777864873,3.98739981,2507.9,2507.8,28.779]
[1747777865175,3.98739981,2507.9,2507.8,8.0]
[1747777865469,3.98787685,2507.6,2507.4,0.7643]
[1747777865647,3.98803589,2507.5,2507.4,0.7643]
[1747777865849,3.98803589,2507.5,2507.4,46.7513]
[1747777866897,3.98803589,2507.5,2507.4,45.987]
[1747777867065,3.98803589,2507.5,2507.4,50.27018328]
[1747777867266,3.98803589,2507.5,2507.4,50.24718328]
[1747777868911,3.98803589,2507.5,2507.4,29.49218328]
[1747777869115,3.98803589,2507.5,2507.4,50.24818328]
[1747777869507,3.98803589,2507.5,2507.4,29.49218328]
[1747777869739,3.98803589,2507.5,2507.4,50.24818328]
[1747777870010,3.98803589,2507.5,2507.4,46.3458204]
[1747777870965,3.98803589,2507.5,2507.4,25.5898204]
[1747777871171,3.98803589,2507.5,2507.4,46.3468204]
[1747777872430,3.98803589,2507.5,2507.4,25.5898204]
[1747777872578,3.98803589,2507.5,2507.4,46.3478204]
[1747777873028,3.98803589,2507.5,2507.4,37.3838204]
[1747777873209,3.98803589,2507.5,2507.4,46.3478204]
[1747777874376,3.98803589,2507.5,2507.4,25.5898204]
[1747777874578,3.98803589,2507.5,2507.4,46.3478204]
[1747777875525,3.98803589,2507.5,2507.4,38.3478204]
[1747777880932,3.98803589,2507.5,2507.4,40.46476485]
[1747777882498,3.98796792,2507.6,2507.4,40.46476485]
[1747777883128,3.98796792,2507.6,2507.5,8.0]
[1747777883329,3.98796792,2507.6,2507.5,29.5423]
[1747777883536,3.98796792,2507.6,2507.5,33.44466288]
[1747777884031,3.98796792,2507.6,2507.5,33.82548328]
[1747777888343,3.98780718,2507.7,2507.5,35.24046728]
[1747777888638,3.98780718,2507.7,2507.6,0.7833]
[1747777889128,3.98780718,2507.7,2507.5,12.28318328]
[1747777889129,3.98787685,2507.6,2507.5,12.28318328]
[1747777889340,3.98787685,2507.6,2507.5,31.24611221]
[1747777889635,3.98780364,2507.7,2507.5,32.02941221]
[1747777889851,3.98780364,2507.7,2507.5,30.01894021]
[1747777890165,3.98780364,2507.7,2507.5,9.26094021]
[1747777890456,3.98780364,2507.7,2507.6,31.53835847]
[1747777890807,3.98780364,2507.7,2507.6,33.96868147]
[1747777892465,3.98780364,2507.7,2507.6,34.3502968]
[1747777892839,3.98780364,2507.7,2507.6,31.9199738]
[1747777894170,3.98780364,2507.7,2507.6,34.3498098]
[1747777894490,3.98780364,2507.7,2507.6,31.9199738]
[1747777895784,3.98780364,2507.7,2507.6,11.1619738]
[1747777895985,3.98780364,2507.7,2507.6,29.13861533]
[1747777896205,3.98780364,2507.7,2507.6,22.65058833]
[1747777896342,3.98780364,2507.7,2507.6,31.61458833]
[1747777896985,3.98780364,2507.7,2507.6,8.38161533]
[1747777897512,3.98780364,2507.7,2507.6,29.11461533]
[1747777898272,3.98780364,2507.7,2507.6,8.38161533]
[1747777898789,3.98780364,2507.7,2507.6,29.11461533]
[1747777900213,3.98780364,2507.7,2507.6,21.11461533]
[1747777900880,3.98780364,2507.7,2507.6,12.15061533]
[1747777901079,3.98780364,2507.7,2507.6,21.11461533]
[1747777901287,4.44170364,2507.7,2507.6,12.15061533]
[1747777901493,4.44170364,2507.7,2507.6,21.11461533]
[1747777901867,4.44170364,2507.7,2507.6,12.15061533]
[1747777902066,4.44170364,2507.7,2507.6,21.11461533]
[1747777902494,4.44170364,2507.7,2507.6,20.733]
[1747777904768,4.44170364,2507.7,2507.6,21.1147848]
[1747777908712,3.98780364,2507.7,2507.6,21.1147848]
[1747777908906,3.98765434,2507.8,2507.6,26.7138378]
[1747777909110,3.98771782,2507.7,2507.6,21.8741848]
[1747777909320,3.98771782,2507.7,2507.6,21.1157848]
[1747777909519,3.98771782,2507.7,2507.6,12.1517848]
[1747777909722,3.98771782,2507.7,2507.6,21.1157848]
[1747777910340,3.98771782,2507.7,2507.6,0.3817848]
[1747777910834,3.98771782,2507.7,2507.6,21.1157848]
[1747777911036,3.98771782,2507.7,2507.6,12.1517848]
[1747777911240,3.98771782,2507.7,2507.6,21.1157848]
[1747777912215,3.98771782,2507.7,2507.6,12.1517848]
[1747777912434,3.98771782,2507.7,2507.6,21.1157848]
[1747777924282,3.98771782,2507.7,2507.6,29.85780068]
[1747777925850,3.98771782,2507.7,2507.6,30.65990068]
[1747777927181,3.98771782,2507.7,2507.6,38.65990068]
[1747777928784,3.98764863,2507.8,2507.6,38.65990068]
[1747777928994,3.98764863,2507.8,2507.7,4.839653]
[1747777929185,3.98764863,2507.8,2507.7,23.21395688]
[1747777929493,3.98764863,2507.8,2507.7,23.59574168]
[1747777930658,3.98764863,2507.8,2507.7,42.20314768]
[1747777931752,3.98764863,2507.8,2507.7,21.49514768]
[1747777931979,3.98764863,2507.8,2507.7,38.3007848]
[1747777933588,0.026,2624.8,2508.6,0.7629]
[1747777933589,3.83930292,2509.7,2508.6,0.7629]
[1747777933903,3.77286864,2510.4,2507.8,4.99697242]
[1747777933904,4.74948566,2510.2,2510.1,11.30485251]
[1747777934056,4.74948566,2510.2,2510.1,38.85016409]
[1747777934391,8.73323197,2510.2,2510.1,20.708]
[1747777934587,3.98438122,2509.8,2509.4,0.7629]
[1747777934787,8.73323197,2510.2,2509.1,8.0]
[1747777934788,0.4539,2509.9,2509.1,8.0]
[1747777934962,3.98533397,2509.2,2509.0,0.7987]
[1747777935164,3.98533397,2509.2,2509.1,20.708]
[1747777935365,3.98533397,2509.2,2509.1,28.708]
[1747777935874,3.98533397,2509.2,2509.1,8.0]
[1747777936193,3.98533397,2509.2,2509.1,0.37901702]
[1747777936394,4.02530786,2509.2,2509.1,12.12301702]
[1747777936594,3.98533397,2509.2,2509.1,12.12301702]
[1747777937566,3.98533397,2509.2,2509.1,11.744]
[1747777938914,3.98533397,2509.2,2509.1,28.952]
[1747777943890,3.98533397,2509.2,2509.1,33.791653]
[1747777944289,3.98533397,2509.2,2509.1,28.952]
[1747777944542,3.98533397,2509.2,2509.1,32.82362]
[1747777945837,3.98533397,2509.2,2509.1,33.37362]
[1747777946691,3.98525574,2509.3,2509.1,46.213273]
[1747777946891,3.98525574,2509.3,2509.2,4.839653]
[1747777948203,3.98517338,2509.4,2509.3,8.2078323]
[1747777948404,3.98517338,2509.4,2509.3,16.94984818]
[1747777949650,3.98517338,2509.4,2509.3,12.11019518]
[1747777949840,3.98517338,2509.4,2509.3,15.11019518]
[1747777950140,3.98517338,2509.4,2509.3,12.11019518]
[1747777950654,3.98517338,2509.4,2509.3,15.83894318]
[1747777950826,3.98517338,2509.4,2509.3,12.89679518]
[1747777951155,0.4539,2510.2,2509.3,15.33607318]
[1747777951312,3.9844097,2509.8,2509.4,1.57344943]
[1747777951512,3.98421824,2510.0,2509.5,13.389653]
[1747777951754,3.98434419,2509.9,2509.7,0.55]
[1747777951950,3.98434419,2509.9,2509.8,16.2350183]
[1747777952137,3.98434419,2509.9,2509.8,36.9320183]
[1747777953358,3.98434419,2509.9,2509.8,16.2350183]
[1747777953564,3.98434419,2509.9,2509.8,34.4877693]
[1747777954051,3.98434419,2509.9,2509.8,13.7907693]
[1747777954219,3.98434419,2509.9,2509.8,31.879004]
[1747777954410,3.98434419,2509.9,2509.8,34.879004]
[1747777954607,3.98434419,2509.9,2509.8,32.25708718]
[1747777955416,3.98408346,2510.0,2509.8,32.25708718]
[1747777955417,3.98414268,2510.0,2509.8,32.25708718]
[1747777955665,3.98414268,2510.0,2509.9,4.839653]
[1747777955841,3.98414268,2510.0,2509.9,8.30978662]
[1747777956017,3.98414268,2510.0,2509.9,8.6878698]
[1747777956341,3.98399503,2510.1,2510.0,8.0]
[1747777956555,3.98399503,2510.1,2510.0,30.038653]
[1747777956715,3.98399503,2510.1,2510.0,29.716496]
[1747777956915,3.98399503,2510.1,2510.0,28.860607]
[1747777957526,3.9831116,2510.6,2510.0,30.57308024]
[1747777957846,3.98226017,2511.2,2510.0,30.57308024]
[1747777957847,4.0327921,2510.9,2510.2,8.0]
[1747777958140,4.0327921,2510.9,2510.1,5.633053]
[1747777958141,4.03273955,2510.9,2510.3,11.735]
[1747777958342,4.03273955,2510.9,2510.4,8.958]
[1747777958343,0.05,2510.9,2510.4,8.958]
[1747777958645,4.03266371,2510.9,2510.4,8.958]
[1747777959325,0.05,2510.9,2510.6,0.7623]
[1747777959523,0.05,2510.9,2510.7,20.686]
[1747777959751,0.05,2510.9,2510.8,14.573133]
[1747777960111,0.05,2510.9,2510.8,15.123133]
[1747777960316,3.98201574,2511.3,2510.9,0.55]
[1747777960512,3.98223965,2511.2,2511.0,22.037653]
[1747777960741,3.982118,2511.3,2511.1,5.601953]
[1747777960950,3.982118,2511.3,2511.2,16.565653]
[1747777961123,3.982118,2511.3,2511.2,20.19867528]
[1747777961539,4.64861108,2511.4,2511.2,19.63635128]
[1747777961745,4.64861108,2511.4,2511.3,8.955]
[1747777962249,4.64861108,2511.4,2511.3,13.794653]
[1747777962451,4.64861108,2511.4,2511.3,16.78625053]
[1747777962950,4.64861108,2511.4,2511.3,24.78625053]
[1747777963245,4.64861108,2511.4,2511.3,36.51225053]
[1747777963452,4.64861108,2511.4,2511.3,36.89037297]
[1747777963862,0.6667,2511.4,2511.3,36.89037297]
[1747777964273,0.6667,2511.4,2511.3,36.88937297]
[1747777965282,0.6667,2511.4,2511.3,37.27969119]
[1747777965630,4.64854279,2511.4,2511.3,37.27969119]
[1747777965831,4.64854279,2511.4,2511.3,37.4755462]
[1747777966552,4.64854279,2511.4,2511.3,32.43903819]
[1747777967352,4.64854279,2511.4,2511.3,32.43703819]
[1747777967556,4.64854279,2511.4,2511.3,32.63878417]
[1747777967756,4.64854279,2511.4,2511.3,32.43703819]
[1747777968061,4.64854279,2511.4,2511.3,11.76003819]
[1747777968263,0.6667,2511.4,2511.3,34.28409366]
[1747777968455,0.6667,2511.4,2511.3,34.48518591]
[1747777968829,0.6667,2511.4,2511.3,29.64553291]
[1747777969033,0.1,2511.9,2511.4,8.8192]
[1747777969034,3.98139233,2511.7,2511.4,8.8192]
[1747777969242,3.98129017,2511.8,2511.5,4.839653]
[1747777969447,3.98144646,2511.7,2511.5,3.72953532]
[1747777969648,3.98131391,2511.8,2511.6,4.839653]
[1747777969846,4.08108408,2511.9,2511.7,8.55]
[1747777969847,4.08113871,2511.9,2511.7,8.55]
[1747777970063,4.08113871,2511.9,2511.8,24.561653]
[1747777970264,4.0305875,2511.9,2511.8,23.926258]
[1747777970468,4.0305875,2511.9,2511.8,32.879258]
[1747777970679,4.0305875,2511.9,2511.8,32.512279]
[1747777971057,4.0305875,2511.9,2511.8,12.21454367]
[1747777971380,4.0305875,2511.9,2511.8,32.88854367]
[1747777971983,0.0495373,2511.9,2511.8,35.21212023]
[1747777972486,4.0305875,2511.9,2511.8,35.21212023]
[1747777972836,4.0305875,2511.9,2511.8,14.53812023]
[1747777973037,4.0305875,2511.9,2511.8,35.21212023]
[1747777973281,4.0305875,2511.9,2511.8,35.21112023]
[1747777974675,4.0305875,2511.9,2511.8,13.16072023]
[1747777974836,4.0305875,2511.9,2511.8,32.88654367]
[1747777975835,4.0305875,2511.9,2511.8,12.21454367]
[1747777976055,4.0305875,2511.9,2511.8,32.88554367]
[1747777977477,4.0305875,2511.9,2511.8,32.88454367]
[1747777978678,4.0305875,2511.9,2511.8,36.22037516]
[1747777979261,0.0495373,2511.9,2511.8,16.31267516]
[1747777979464,4.0305875,2511.9,2511.8,33.64584367]
[1747777979784,0.0495373,2511.9,2511.8,9.13956467]
[1747777979950,0.0495373,2511.9,2511.8,34.64821767]
[1747777980152,0.0495373,2511.9,2511.8,38.16041656]
[1747777980456,3.98517107,2511.9,2511.8,38.16041656]
[1747777980662,0.00412087,2511.9,2511.8,38.16041656]
[1747777981585,0.00412087,2511.9,2511.8,38.63418783]
[1747777981951,3.98517107,2511.9,2511.8,38.63418783]
[1747777982381,3.98517107,2511.9,2511.8,37.87188783]
[1747777982896,3.98517107,2511.9,2511.8,37.86988783]
[1747777983499,3.98517107,2511.9,2511.8,13.69068894]
[1747777983666,3.98517107,2511.9,2511.8,0.85103594]
[1747777983870,4.43907107,2511.9,2511.8,21.04426467]
[1747777984985,3.98184279,2511.4,2511.3,0.47373914]
[1747777985178,9.17974279,2511.4,2511.3,0.47373914]
[1747777985781,8.72600135,2511.3,2511.2,11.719]
[1747777985984,9.54817873,2511.3,2511.2,11.719]
[1747777986393,4.43669432,2510.8,2510.7,17.183]
[1747777986712,4.98669432,2510.8,2510.7,17.183]
[1747777986889,4.5331116,2510.6,2510.5,11.719]
[1747777987297,3.98342893,2510.4,2510.3,0.47373914]
[1747777987503,3.98390502,2510.1,2510.0,17.183]
[1747777987679,3.98390502,2510.1,2510.0,37.851]
[1747777987878,4.43780502,2510.1,2510.0,17.183]
[1747777988113,4.43780502,2510.1,2510.0,37.853]
[1747777988673,4.43780502,2510.1,2510.0,38.51966667]
[1747777990587,3.98390502,2510.1,2510.0,41.36099337]
[1747777991995,3.98390502,2510.1,2510.0,17.84966667]
[1747777992199,3.98390502,2510.1,2510.0,38.51866667]
[1747777993432,3.98390502,2510.1,2510.0,17.84966667]
[1747777993605,3.98390502,2510.1,2510.0,38.51866667]
[1747777994701,3.98390502,2510.1,2510.0,17.84966667]
[1747777994908,3.98390502,2510.1,2510.0,38.52066667]
[1747777995104,3.98390502,2510.1,2510.0,42.42302955]
[1747777995416,3.98390502,2510.1,2510.0,52.58789155]
[1747777995597,3.98390502,2510.1,2510.0,50.42302955]
[1747777997638,3.98277526,2510.9,2510.0,50.42302955]